fUST/lending_fUST_20250120
["ID","MTS","AMOUNT","RATE_DAILY","PERIOD"]
[349577713,1737306646395,-806.74,0.0002315,3]
[349577715,1737306646405,-1238.86,0.0002315,3]
[349577717,1737306646415,-500.0,0.00023218,2]
[349577719,1737306646424,-500.0,0.00023287,3]
[349577721,1737306646434,-500.0,0.00023287,3]
[349577723,1737306646443,-630.29763346,0.00023287,3]
[349577725,1737306646452,-500.0,0.00023287,2]
[349577727,1737306646462,-2873.9,0.00023287,3]
[349577729,1737306646472,-500.0,0.00023287,3]
[349577731,1737306646481,-500.0,0.00023287,3]
[349577733,1737306646491,-500.0,0.00023287,3]
[349577735,1737306646501,-1040.17,0.00023287,3]
[349577737,1737306646510,-1041.36,0.00023287,3]
[349577739,1737306646519,-1176.41,0.00023287,3]
[349577741,1737306646528,-1181.85,0.00023287,3]
[349577743,1737306646538,-500.0,0.00023287,3]
[349577745,1737306646548,-4631.5,0.00023287,3]
[349577756,1737306646557,-2091.06,0.00023287,3]
[349577759,1737306646664,-2673.28,0.00023287,3]
[349577761,1737306646674,-659.8,0.00023287,3]
[349577763,1737306646684,-952.95,0.00023287,3]
[349577765,1737306646694,-802.29,0.00023287,3]
[349577767,1737306646703,-500.0,0.00023287,3]
[349577770,1737306646713,-729.77,0.00023287,3]
[349577773,1737306646723,-662.89,0.00023287,3]
[349577776,1737306646733,-500.0,0.00023287,3]
[349577779,1737306646742,-500.0,0.00023287,3]
[349577782,1737306646752,-347.413775,0.00023287,3]
[349577785,1737306646762,-806.74,0.00023287,3]
[349577788,1737306646771,-1238.86,0.00023287,3]
[349577790,1737306646781,-24949.99999942,0.000233,2]
[349577792,1737306646790,-500.0,0.00023424,3]
[349577795,1737306646799,-552.34268061,0.00023424,3]
[349577798,1737306646809,-500.0,0.00023424,2]
[349577801,1737306646819,-2873.9,0.00023424,3]
[349577804,1737306646828,-500.0,0.00023424,3]
[349577806,1737306646838,-500.0,0.00023424,3]
[349577808,1737306646847,-331.27925779,0.00023424,3]
[349577810,1737306646857,-1040.17,0.00023424,3]
[349577812,1737306646866,-1041.36,0.00023424,3]
[349577814,1737306646875,-1176.41,0.00023424,3]
[349577816,1737306646888,-1181.85,0.00023424,3]
[349577818,1737306646897,-500.0,0.00023424,3]
[349577820,1737306646906,-4631.5,0.00023424,3]
[349577822,1737306646916,-2091.06,0.00023424,3]
[349577824,1737306646928,-2673.28,0.00023424,3]
[349577826,1737306646937,-659.8,0.00023424,3]
[349577828,1737306646947,-952.95,0.00023424,3]
[349577830,1737306646956,-802.29,0.00023424,3]
[349577832,1737306646966,-500.0,0.00023424,3]
[349577834,1737306646976,-729.77,0.00023424,3]
[349577836,1737306646985,-662.89,0.00023424,3]
[349577838,1737306646995,-389.00886663,0.00023424,3]
[349577840,1737306647008,-500.0,0.00023424,3]
[349577842,1737306647026,-806.74,0.00023424,3]
[349577844,1737306647036,-1238.86,0.00023424,3]
[349577846,1737306647046,-661.40631884,0.00023427,2]
[349577848,1737306647059,-300.0,0.000235,10]
[349577850,1737306647068,-500.0,0.00023561,3]
[349577852,1737306647078,-500.0,0.00023561,2]
[349577854,1737306647088,-2873.9,0.00023561,3]
[349577856,1737306647098,-500.0,0.00023561,3]
[349577858,1737306647108,-193.45790145,0.00023561,3]
[349577860,1737306647117,-1040.17,0.00023561,3]
[349577862,1737306647126,-1041.36,0.00023561,3]
[349577864,1737306647138,-1176.41,0.00023561,3]
[349577866,1737306647147,-1181.85,0.00023561,3]
[349577868,1737306647156,-500.0,0.00023561,3]
[349577870,1737306647166,-4631.5,0.00023561,3]
[349577872,1737306647176,-2091.06,0.00023561,3]
[349577874,1737306647185,-2673.28,0.00023561,3]
[349577876,1737306647195,-659.8,0.00023561,3]
[349577878,1737306647204,-952.95,0.00023561,3]
[349577880,1737306647214,-802.29,0.00023561,3]
[349577882,1737306647224,-500.0,0.00023561,3]
[349577884,1737306647233,-729.77,0.00023561,3]
[349577886,1737306647243,-662.89,0.00023561,3]
[349577888,1737306647253,-471.92513465,0.00023561,3]
[349577890,1737306647263,-806.74,0.00023561,3]
[349577892,1737306647273,-1238.86,0.00023561,3]
[349577894,1737306647283,-155.0434598,0.00023616,2]
[349577896,1737306647292,-591.90165372,0.00023698,3]
[349577898,1737306647301,-500.0,0.00023698,2]
[349577900,1737306647312,-2873.9,0.00023698,3]
[349577903,1737306647323,-500.0,0.00023698,3]
[349577905,1737306647333,-1040.17,0.00023698,3]
[349577907,1737306647343,-1041.36,0.00023698,3]
[349577909,1737306647353,-1176.41,0.00023698,3]
[349577911,1737306647363,-1181.85,0.00023698,3]
[349577913,1737306647373,-500.0,0.00023698,3]
[349577915,1737306647388,-4631.5,0.00023698,3]
[349577917,1737306647398,-2091.06,0.00023698,3]
[349577919,1737306647412,-2673.28,0.00023698,3]
[349577921,1737306647422,-659.8,0.00023698,3]
[349577923,1737306647432,-952.95,0.00023698,3]
[349577925,1737306647441,-802.29,0.00023698,3]
[349577927,1737306647452,-500.0,0.00023698,3]
[349577929,1737306647463,-729.77,0.00023698,3]
[349577931,1737306647473,-662.89,0.00023698,3]
[349577933,1737306647483,-806.74,0.00023698,3]
[349577935,1737306647493,-1238.86,0.00023698,3]
[349577937,1737306647504,-661.40631884,0.00023749,2]
[349577939,1737306647514,-420.0,0.00023799,2]
[349577941,1737306647524,-500.0,0.00023835,2]
[349577943,1737306647534,-2873.9,0.00023835,3]
[349577945,1737306647544,-500.0,0.00023835,3]
[349577947,1737306647554,-1040.17,0.00023835,3]
[349577950,1737306647564,-1041.36,0.00023835,3]
[349577952,1737306647574,-1176.41,0.00023835,3]
[349577954,1737306647584,-500.0,0.00023835,3]
[349577956,1737306647595,-1181.85,0.00023835,3]
[349577958,1737306647604,-4631.5,0.00023835,3]
[349577960,1737306647614,-2091.06,0.00023835,3]
[349577962,1737306647624,-2673.28,0.00023835,3]
[349577964,1737306647640,-659.8,0.00023835,3]
[349577966,1737306647650,-952.95,0.00023835,3]
[349577968,1737306647660,-802.29,0.00023835,3]
[349577970,1737306647670,-500.0,0.00023835,3]
[349577972,1737306647680,-729.77,0.00023835,3]
[349577974,1737306647690,-662.89,0.00023835,3]
[349577976,1737306647700,-806.74,0.00023835,3]
[349577978,1737306647710,-1238.86,0.00023835,3]
[349577980,1737306647719,-22563.57221625,0.00023924,2]
[349577982,1737306647728,-500.0,0.00023972,2]
[349577985,1737306647738,-2873.9,0.00023972,3]
[349577987,1737306647747,-500.0,0.00023972,3]
[349577989,1737306647757,-1040.17,0.00023972,3]
[349577991,1737306647767,-1041.36,0.00023972,3]
[349577993,1737306647776,-1176.41,0.00023972,3]
[349577995,1737306647785,-495.56074131,0.00023972,3]
[349577997,1737306647795,-1181.85,0.00023972,3]
[349577998,1737306647805,-4631.5,0.00023972,3]
[349578001,1737306647815,-2091.06,0.00023972,3]
[349578003,1737306647824,-2673.28,0.00023972,3]
[349578005,1737306647834,-659.8,0.00023972,3]
[349578007,1737306647844,-952.95,0.00023972,3]
[349578008,1737306647853,-802.29,0.00023972,3]
[349578010,1737306647863,-500.0,0.00023972,3]
[349578013,1737306647873,-729.77,0.00023972,3]
[349578015,1737306647889,-662.89,0.00023972,3]
[349578017,1737306647899,-806.74,0.00023972,3]
[349578019,1737306647909,-1238.86,0.00023972,3]
[349578021,1737306647919,-160.0,0.00023987,5]
[349578023,1737306647928,-1000.0,0.00024,24]
[349578025,1737306647938,-152.37,0.00024,31]
[349578027,1737306647949,-152.37,0.00024,31]
[349578029,1737306647959,-152.37,0.00024,31]
[349578030,1737306647969,-152.37,0.00024,31]
[349578033,1737306647979,-152.37,0.00024,31]
[349578035,1737306647989,-152.37,0.00024,31]
[349578037,1737306648000,-152.37,0.00024,31]
[349578039,1737306648010,-152.37,0.00024,31]
[349578041,1737306648019,-152.37,0.00024,31]
[349578043,1737306648030,-152.37,0.00024,31]
[349578045,1737306648040,-152.37,0.00024,31]
[349578047,1737306648052,-152.37,0.00024,31]
[349578049,1737306648061,-152.37,0.00024,31]
[349578051,1737306648071,-152.37,0.00024,31]
[349578053,1737306648081,-152.37,0.00024,31]
[349578055,1737306648091,-152.37,0.00024,31]
[349578057,1737306648101,-2993.0,0.00024039,7]
[349578059,1737306648111,-52795.30048873,0.0002407,2]
[349578061,1737306648121,-661.40631884,0.00024071,2]
[349578063,1737306648138,-500.0,0.00024073,2]
[349578065,1737306648148,-500.0,0.00024073,2]
[349578067,1737306648157,-496.0,0.000241,2]
[349578069,1737306648166,-2000.0,0.000241,2]
[349578071,1737306648176,-2000.0,0.000241,2]
[349578073,1737306648185,-639.95704014,0.00024109,2]
[349578075,1737306648196,-2873.9,0.00024109,3]
[349578077,1737306648206,-500.0,0.00024109,3]
[349578079,1737306648215,-1040.17,0.00024109,3]
[349578081,1737306648226,-1041.36,0.00024109,3]
[349578083,1737306648236,-1176.41,0.00024109,3]
[349578085,1737306648245,-1181.85,0.00024109,3]
[349578087,1737306648256,-4631.5,0.00024109,3]
[349578089,1737306648265,-2091.06,0.00024109,3]
[349578091,1737306648275,-2673.28,0.00024109,3]
[349578093,1737306648286,-659.8,0.00024109,3]
[349578095,1737306648295,-952.95,0.00024109,3]
[349578097,1737306648306,-802.29,0.00024109,3]
[349578099,1737306648316,-279.12926912,0.00024109,3]
[349578101,1737306648326,-729.77,0.00024109,3]
[349578103,1737306648336,-662.89,0.00024109,3]
[349578105,1737306648346,-806.74,0.00024109,3]
[349578107,1737306648355,-1238.86,0.00024109,3]
[349578109,1737306648365,-1500.0,0.00024147,2]
[349578111,1737306648375,-151.0,0.00024164,7]
[349578113,1737306648389,-164.0,0.00024164,2]
[349578115,1737306648399,-171.1453003,0.00024164,2]
[349578117,1737306648408,-151.0,0.00024169,7]
[349578119,1737306648418,-151.0,0.00024169,7]
[349578121,1737306648428,-151.0,0.0002417,7]
[349578123,1737306648439,-151.0,0.0002417,7]
[349578125,1737306648449,-151.0,0.0002417,7]
[349578127,1737306648459,-151.0,0.0002417,7]
[349578129,1737306648469,-151.0,0.0002417,7]
[349578131,1737306648478,-151.0,0.0002417,7]
[349578133,1737306648488,-151.0,0.0002417,7]
[349578135,1737306648498,-151.0,0.0002417,7]
[349578137,1737306648508,-195.341212,0.0002417,7]
[349578139,1737306648518,-7438.69753278,0.0002417,7]
[349578141,1737306648528,-478563.4126021,0.00024171,61]
[349578156,1737306648668,-7962.18,0.0002315,3]
[349578159,1737306648678,-7962.18,0.00023287,3]
[349578161,1737306648688,-7962.18,0.00023424,3]
[349578163,1737306648698,-7962.18,0.00023561,3]
[349578165,1737306648708,-7962.18,0.00023698,3]
[349578167,1737306648718,-1009189.1,0.00024171,61]
[349578499,1737306818525,3590.9,0.000167,2]
[349578501,1737307123525,157.895627,0.00013973,2]
[349578502,1737307353295,3894.48465215,0.00023561,120]
[349578561,1737307832832,-153.23190892,0.00020654,2]
[349578563,1737307832842,-166.1303169,0.00020664,2]
[349578565,1737307832852,-153.23190892,0.00020672,2]
[349578567,1737307832861,-153.23190892,0.00020689,2]
[349578569,1737307832871,-1486.3865146,0.00020754,2]
[349578571,1737307832880,-250.0,0.00020789,2]
[349578572,1737307832889,-157.895627,0.00020807,2]
[349578573,1737307832899,-239.777444,0.00020894,2]
[349578574,1737307832908,-3813.78258872,0.000219,3]
[349578575,1737307832919,-361.7710804,0.000219,3]
[349578576,1737307832929,-300.0,0.00021916,2]
[349578577,1737307832938,-154.35,0.00021917,2]
[349578578,1737307832947,-500.0,0.00021917,2]
[349578579,1737307832956,-553.09747281,0.00021917,3]
[349578580,1737307832966,-500.0,0.00021917,3]
[349578581,1737307832975,-500.0,0.00021917,3]
[349578582,1737307832987,-500.0,0.00021917,3]
[349578583,1737307832996,-501.30407622,0.00021917,3]
[349578584,1737307833005,-500.0,0.00021917,3]
[349578585,1737307833015,-500.0,0.00021917,3]
[349578586,1737307833024,-500.0,0.00021917,3]
[349578588,1737307833033,-507.79141291,0.00021917,3]
[349578590,1737307833043,-500.0,0.00021917,3]
[349578592,1737307833052,-500.0,0.00021917,3]
[349578594,1737307833061,-500.0,0.00021917,3]
[349578595,1737307833071,-500.0,0.00021917,3]
[349578597,1737307833079,-500.0,0.00021917,3]
[349578599,1737307833089,-500.98890616,0.00021917,3]
[349578600,1737307833099,-500.80489336,0.00021917,3]
[349578601,1737307833108,-501.42415042,0.00021917,3]
[349578602,1737307833117,-500.0,0.00021917,3]
[349578603,1737307833127,-508.50877021,0.00021917,3]
[349578604,1737307833137,-500.70665501,0.00021917,3]
[349578606,1737307833146,-500.0,0.00021917,3]
[349578607,1737307833155,-500.0,0.00021917,3]
[349578609,1737307833165,-501.3352696,0.00021917,3]
[349578610,1737307833175,-500.0,0.00021917,3]
[349578612,1737307833185,-500.0,0.00021917,3]
[349578614,1737307833195,-501.18350726,0.00021917,3]
[349578616,1737307833204,-500.0,0.00021917,3]
[349578618,1737307833213,-501.50130093,0.00021917,3]
[349578620,1737307833223,-373.92456067,0.00021917,3]
[349578622,1737307833239,-126.74667533,0.00021917,3]
[349578625,1737307833249,-500.0,0.00021917,3]
[349578626,1737307833258,-502.10316612,0.00021917,3]
[349578641,1737307833387,-200.0,0.00021917,3]
[349578643,1737307833401,-428.30964446,0.00021917,3]
[349578645,1737307833413,-500.0,0.00021917,3]
[349578647,1737307833425,-501.20259571,0.00021917,3]
[349578649,1737307833435,-539.20431718,0.00021917,3]
[349578651,1737307833446,-500.0,0.00021917,3]
[349578654,1737307833456,-505.37776587,0.00021917,3]
[349578656,1737307833467,-500.0,0.00021917,3]
[349578658,1737307833478,-284.28409793,0.00021917,3]
[349578660,1737307833493,-507.48222453,0.00021917,3]
[349578662,1737307833503,-501.50557775,0.00021917,3]
[349578664,1737307833513,-500.63827591,0.00021917,3]
[349578665,1737307833525,-501.04194884,0.00021917,3]
[349578666,1737307833536,-500.0,0.00021917,3]
[349578667,1737307833547,-500.87404268,0.00021917,3]
[349578668,1737307833557,-501.10193291,0.00021917,3]
[349578669,1737307833567,-503.37772414,0.00021917,3]
[349578670,1737307833576,-501.69949001,0.00021917,3]
[349578671,1737307833587,-500.0,0.00021917,3]
[349578672,1737307833598,-502.84623228,0.00021917,3]
[349578673,1737307833609,-501.82713451,0.00021917,3]
[349578674,1737307833619,-503.24001391,0.00021917,3]
[349578675,1737307833629,-168.425,0.00021917,2]
[349578676,1737307833639,-500.0,0.00021917,3]
[349578677,1737307833650,-501.35563449,0.00021917,3]
[349578678,1737307833660,-500.80580024,0.00021917,3]
[349578679,1737307833670,-500.0,0.00021917,3]
[349578680,1737307833680,-501.01067786,0.00021917,3]
[349578681,1737307833689,-500.9496715,0.00021917,3]
[349578682,1737307833699,-502.4177123,0.00021917,3]
[349578683,1737307833709,-501.68655702,0.00021917,3]
[349578684,1737307833718,-500.95099606,0.00021917,3]
[349578685,1737307833728,-497.14797117,0.00021917,3]
[349578686,1737307833742,-500.0,0.00021917,3]
[349578687,1737307833752,-500.0,0.00021917,3]
[349578688,1737307833762,-502.4174076,0.00021917,3]
[349578689,1737307833771,-507.71562901,0.00021917,3]
[349578690,1737307833781,-500.0,0.00021917,3]
[349578691,1737307833790,-500.64144291,0.00021917,3]
[349578692,1737307833800,-500.0,0.00021917,3]
[349578693,1737307833809,-504.48148941,0.00021917,3]
[349578694,1737307833819,-500.0,0.00021917,3]
[349578695,1737307833828,-500.0,0.00021917,3]
[349578696,1737307833838,-500.0,0.00021917,3]
[349578697,1737307833848,-500.0,0.00021917,3]
[349578698,1737307833858,-500.0,0.00021917,3]
[349578699,1737307833867,-501.60579426,0.00021917,3]
[349578700,1737307833878,-500.0,0.00021917,3]
[349578701,1737307833888,-500.0,0.00021917,3]
[349578702,1737307833898,-500.0,0.00021917,3]
[349578703,1737307833908,-500.0,0.00021917,3]
[349578704,1737307833918,-500.0,0.00021917,3]
[349578705,1737307833927,-500.0,0.00021917,3]
[349578706,1737307833937,-505.1347633,0.00021917,3]
[349578707,1737307833947,-345.67006004,0.00021917,3]
[349578708,1737307833961,-154.32993996,0.00021917,3]
[349578709,1737307833972,-500.0,0.00021917,3]
[349578710,1737307833982,-500.0,0.00021917,3]
[349578711,1737307833996,-500.0,0.00021917,3]
[349578712,1737307834006,-500.0,0.00021917,3]
[349578713,1737307834016,-500.0,0.00021917,3]
[349578714,1737307834026,-500.0,0.00021917,3]
[349578715,1737307834036,-211.20614088,0.00021917,3]
[349578716,1737307834045,-500.0,0.00021917,3]
[349578717,1737307834054,-501.30305321,0.00021917,3]
[349578718,1737307834064,-500.0,0.00021917,3]
[349578719,1737307834074,-123.31551775,0.00021917,2]
[349578720,1737307834105,-376.68448225,0.00021917,2]
[349578721,1737307834115,-500.0,0.00021917,3]
[349578722,1737307834125,-500.0,0.00021917,3]
[349578723,1737307834135,-500.0,0.00021917,3]
[349578724,1737307834145,-500.0,0.00021917,3]
[349578725,1737307834155,-500.0,0.00021917,3]
[349578726,1737307834166,-500.0,0.00021917,3]
[349578727,1737307834176,-500.0,0.00021917,3]
[349578728,1737307834186,-500.93006113,0.00021917,3]
[349578729,1737307834196,-500.99770989,0.00021917,3]
[349578730,1737307834206,-500.0,0.00021917,3]
[349578731,1737307834216,-500.0,0.00021917,3]
[349578732,1737307834226,-500.0,0.00021917,3]
[349578733,1737307834239,-500.0,0.00021917,3]
[349578734,1737307834249,-500.0,0.00021917,3]
[349578735,1737307834259,-1386.61,0.00021917,3]
[349578736,1737307834269,-500.0,0.00021917,3]
[349578737,1737307834280,-2447.19,0.00021917,3]
[349578738,1737307834290,-3231.23,0.00021917,3]
[349578739,1737307834299,-500.0,0.00021917,3]
[349578740,1737307834309,-5654.29,0.00021917,3]
[349578741,1737307834319,-500.0,0.00021917,3]
[349578742,1737307834329,-500.0,0.00021917,3]
[349578743,1737307834339,-500.0,0.00021917,3]
[349578744,1737307834348,-1108.61,0.00021917,3]
[349578745,1737307834358,-500.0,0.00021917,3]
[349578746,1737307834368,-500.0,0.00021917,3]
[349578747,1737307834378,-773.93,0.00021917,3]
[349578748,1737307834389,-500.0,0.00021917,3]
[349578749,1737307834399,-500.0,0.00021917,3]
[349578750,1737307834414,-500.0,0.00021917,3]
[349578751,1737307834424,-698.05,0.00021917,3]
[349578752,1737307834434,-500.0,0.00021917,3]
[349578753,1737307834444,-3103.4,0.00021917,3]
[349578754,1737307834454,-902.55,0.00021917,3]
[349578755,1737307834464,-500.0,0.00021917,3]
[349578756,1737307834474,-500.0,0.00021917,3]
[349578757,1737307834484,-500.0,0.00021917,3]
[349578758,1737307834498,-789.45,0.00021917,3]
[349578759,1737307834508,-862.88,0.00021917,3]
[349578760,1737307834518,-500.0,0.00021917,3]
[349578761,1737307834528,-500.0,0.00021917,3]
[349578762,1737307834539,-500.0,0.00021917,3]
[349578763,1737307834548,-1452.67,0.00021917,3]
[349578764,1737307834558,-10392.09,0.00021917,3]
[349578765,1737307834568,-500.0,0.00021917,3]
[349578766,1737307834579,-500.0,0.00021917,3]
[349578767,1737307834589,-500.0,0.00021917,3]
[349578768,1737307834598,-500.0,0.00021917,3]
[349578769,1737307834608,-500.0,0.00021917,3]
[349578770,1737307834618,-1199.9,0.00021917,3]
[349578771,1737307834628,-500.0,0.00021917,3]
[349578772,1737307834638,-500.0,0.00021917,3]
[349578773,1737307834647,-500.0,0.00021917,3]
[349578774,1737307834656,-500.0,0.00021917,3]
[349578775,1737307834666,-249.87845959,0.00021973,2]
[349578776,1737307834675,-500.0,0.00021973,2]
[349578777,1737307834685,-257.13421959,0.00021973,2]
[349578778,1737307834695,-499.0,0.00021999,2]
[349578779,1737307834704,-10527.0747483,0.00022,7]
[349578780,1737307834714,-39269.79508068,0.00022,2]
[349578781,1737307834724,-4175.55366888,0.00022003,3]
[349578782,1737307834733,-173.30493992,0.00022053,2]
[349578783,1737307834747,-500.0,0.00022053,2]
[349578784,1737307834756,-500.0,0.00022053,2]
[349578785,1737307834766,-500.0,0.00022054,2]
[349578786,1737307834775,-500.0,0.00022054,3]
[349578787,1737307834785,-500.0,0.00022054,3]
[349578788,1737307834794,-500.0,0.00022054,3]
[349578789,1737307834804,-500.0,0.00022054,3]
[349578790,1737307834814,-500.0,0.00022054,3]
[349578791,1737307834823,-500.0,0.00022054,3]
[349578792,1737307834832,-500.0,0.00022054,2]
[349578793,1737307834842,-500.0,0.00022054,3]
[349578794,1737307834851,-500.0,0.00022054,3]
[349578795,1737307834861,-500.0,0.00022054,3]
[349578796,1737307834871,-500.0,0.00022054,3]
[349578797,1737307834880,-500.0,0.00022054,3]
[349578798,1737307834890,-1386.61,0.00022054,3]
[349578799,1737307834903,-500.0,0.00022054,3]
[349578800,1737307834912,-2447.19,0.00022054,3]
[349578801,1737307834922,-3231.23,0.00022054,3]
[349578802,1737307834931,-500.0,0.00022054,3]
[349578803,1737307834941,-5654.29,0.00022054,3]
[349578804,1737307834951,-475.8393513,0.00022054,3]
[349578805,1737307834961,-500.0,0.00022054,3]
[349578806,1737307834970,-1108.61,0.00022054,3]
[349578807,1737307834981,-500.0,0.00022054,3]
[349578808,1737307834992,-500.0,0.00022054,3]
[349578809,1737307835003,-773.93,0.00022054,3]
[349578810,1737307835013,-500.0,0.00022054,3]
[349578811,1737307835022,-500.0,0.00022054,3]
[349578812,1737307835032,-500.0,0.00022054,3]
[349578813,1737307835042,-698.05,0.00022054,3]
[349578814,1737307835052,-500.0,0.00022054,3]
[349578815,1737307835062,-3103.4,0.00022054,3]
[349578816,1737307835071,-902.55,0.00022054,3]
[349578817,1737307835081,-500.0,0.00022054,3]
[349578818,1737307835091,-500.0,0.00022054,3]
[349578819,1737307835100,-500.0,0.00022054,3]
[349578820,1737307835110,-789.45,0.00022054,3]
[349578821,1737307835120,-862.88,0.00022054,3]
[349578822,1737307835130,-500.0,0.00022054,3]
[349578823,1737307835140,-500.0,0.00022054,3]
[349578824,1737307835150,-500.0,0.00022054,3]
[349578825,1737307835159,-1452.67,0.00022054,3]
[349578826,1737307835169,-10392.09,0.00022054,3]
[349578827,1737307835178,-500.0,0.00022054,3]
[349578828,1737307835188,-500.0,0.00022054,3]
[349578829,1737307835198,-500.0,0.00022054,3]
[349578830,1737307835208,-500.0,0.00022054,3]
[349578831,1737307835218,-500.0,0.00022054,3]
[349578832,1737307835228,-1199.9,0.00022054,3]
[349578833,1737307835239,-500.0,0.00022054,3]
[349578834,1737307835250,-500.0,0.00022054,3]
[349578835,1737307835260,-4175.55366888,0.00022107,3]
[349578836,1737307835269,-500.0,0.00022191,3]
[349578837,1737307835279,-500.0,0.00022191,3]
[349578838,1737307835288,-500.0,0.00022191,3]
[349578839,1737307835298,-500.0,0.00022191,3]
[349578840,1737307835307,-500.0,0.00022191,3]
[349578841,1737307835316,-500.0,0.00022191,2]
[349578842,1737307835326,-500.0,0.00022191,3]
[349578843,1737307835335,-500.0,0.00022191,3]
[349578844,1737307835344,-500.0,0.00022191,3]
[349578845,1737307835354,-500.0,0.00022191,3]
[349578846,1737307835363,-500.0,0.00022191,3]
[349578847,1737307835373,-1386.61,0.00022191,3]
[349578848,1737307835383,-500.0,0.00022191,3]
[349578849,1737307835394,-2447.19,0.00022191,3]
[349578850,1737307835405,-3231.23,0.00022191,3]
[349578851,1737307835417,-5654.29,0.00022191,3]
[349578852,1737307835426,-500.0,0.00022191,3]
[349578853,1737307835436,-1108.61,0.00022191,3]
[349578854,1737307835445,-500.0,0.00022191,3]
[349578855,1737307835455,-500.0,0.00022191,3]
[349578856,1737307835464,-773.93,0.00022191,3]
[349578857,1737307835474,-500.0,0.00022191,3]
[349578858,1737307835484,-500.0,0.00022191,3]
[349578859,1737307835498,-500.0,0.00022191,3]
[349578860,1737307835508,-698.05,0.00022191,3]
[349578861,1737307835519,-500.0,0.00022191,3]
[349578862,1737307835528,-3103.4,0.00022191,3]
[349578863,1737307835538,-902.55,0.00022191,3]
[349578864,1737307835547,-500.0,0.00022191,3]
[349578865,1737307835556,-500.0,0.00022191,3]
[349578866,1737307835566,-500.0,0.00022191,3]
[349578867,1737307835576,-789.45,0.00022191,3]
[349578868,1737307835585,-862.88,0.00022191,3]
[349578869,1737307835595,-500.0,0.00022191,3]
[349578870,1737307835604,-500.0,0.00022191,3]
[349578871,1737307835614,-500.0,0.00022191,3]
[349578872,1737307835624,-1452.67,0.00022191,3]
[349578873,1737307835633,-10392.09,0.00022191,3]
[349578874,1737307835642,-500.0,0.00022191,3]
[349578875,1737307835652,-500.0,0.00022191,3]
[349578876,1737307835661,-500.0,0.00022191,3]
[349578877,1737307835670,-500.0,0.00022191,3]
[349578878,1737307835680,-500.0,0.00022191,3]
[349578879,1737307835689,-1199.9,0.00022191,3]
[349578880,1737307835698,-500.0,0.00022191,3]
[349578881,1737307835707,-500.0,0.00022191,3]
[349578882,1737307835717,-4175.55366888,0.0002221,3]
[349578883,1737307835727,-4175.55366888,0.00022314,3]
[349578884,1737307835739,-500.0,0.00022327,2]
[349578885,1737307835749,-500.0,0.00022328,3]
[349578886,1737307835758,-500.0,0.00022328,3]
[349578887,1737307835767,-500.0,0.00022328,3]
[349578888,1737307835777,-500.0,0.00022328,3]
[349578889,1737307835786,-500.0,0.00022328,3]
[349578890,1737307835796,-500.0,0.00022328,2]
[349578891,1737307835805,-500.0,0.00022328,3]
[349578892,1737307835815,-500.0,0.00022328,3]
[349578893,1737307835825,-500.0,0.00022328,3]
[349578894,1737307835835,-500.0,0.00022328,3]
[349578895,1737307835844,-500.0,0.00022328,3]